[Event "*** Titled Tuesday Blitz"]
[Site "Chess.com"]
[Date "2020.05.19"]
[Round "2"]
[White "FMOlexandrProhorov"]
[Black "KanseiMigatte"]
[Result "0-1"]
[WhiteElo "2120"]
[BlackElo "2404"]
[TimeControl "180+1"]
[EndTime "12:18:56 PDT"]
[Termination "KanseiMigatte won on time"]

1. e4 {[%clk 0:02:53]} 1... e6 {[%clk 0:02:58.3]} 2. d4 {[%clk 0:02:29.5]} 2...
d5 {[%clk 0:02:51.1]} 3. Nc3 {[%clk 0:02:23.2]} 3... Nf6 {[%clk 0:02:46.4]} 4.
Nge2 {[%clk 0:02:24.1]} 4... dxe4 {[%clk 0:02:45.1]} 5. Ng3 {[%clk 0:02:23]}
5... Bb4 {[%clk 0:02:45.1]} 6. Bg5 {[%clk 0:02:18.7]} 6... Nbd7 {[%clk
0:02:37.8]} 7. Nxe4 {[%clk 0:02:15]} 7... h6 {[%clk 0:02:37.5]} 8. Bxf6 {[%clk
0:02:14.4]} 8... Nxf6 {[%clk 0:02:37.1]} 9. Qf3 {[%clk 0:02:07.6]} 9... Nxe4
{[%clk 0:02:33.9]} 10. Qxe4 {[%clk 0:02:07]} 10... Bxc3+ {[%clk 0:02:34.2]} 11.
bxc3 {[%clk 0:02:06.4]} 11... Bd7 {[%clk 0:02:33.3]} 12. Bd3 {[%clk 0:02:04.7]}
12... Bc6 {[%clk 0:02:22.2]} 13. Qg4 {[%clk 0:02:04.3]} 13... Qg5 {[%clk
0:02:18.7]} 14. Qxg5 {[%clk 0:01:57.4]} 14... hxg5 {[%clk 0:02:19.6]} 15. O-O
{[%clk 0:01:56.5]} 15... O-O {[%clk 0:02:13.6]} 16. Rfe1 {[%clk 0:01:55.3]}
16... Rfe8 {[%clk 0:02:09.5]} 17. Rab1 {[%clk 0:01:47.6]} 17... b6 {[%clk
0:02:08.1]} 18. Bb5 {[%clk 0:01:43.5]} 18... Bxb5 {[%clk 0:02:04.9]} 19. Rxb5
{[%clk 0:01:42.6]} 19... f6 {[%clk 0:02:04.9]} 20. c4 {[%clk 0:01:12.7]} 20...
Kf7 {[%clk 0:02:03.8]} 21. Kf1 {[%clk 0:01:11.6]} 21... Rad8 {[%clk 0:02:02.3]}
22. c3 {[%clk 0:01:11.8]} 22... c6 {[%clk 0:01:59.2]} 23. Rb2 {[%clk 0:01:10.8]}
23... e5 {[%clk 0:01:48.4]} 24. dxe5 {[%clk 0:01:07.9]} 24... Rxe5 {[%clk
0:01:49.3]} 25. Rxe5 {[%clk 0:01:03]} 25... fxe5 {[%clk 0:01:49]} 26. Ke2 {[%clk
0:01:03.6]} 26... Ke6 {[%clk 0:01:37.1]} 27. Ke3 {[%clk 0:01:02.1]} 27... g4
{[%clk 0:01:36.7]} 28. a4 {[%clk 0:00:57.8]} 28... Rh8 {[%clk 0:01:32.3]} 29. h4
{[%clk 0:00:46]} 29... gxh3 {[%clk 0:01:22.1]} 30. gxh3 {[%clk 0:00:46.2]} 30...
Rxh3+ {[%clk 0:01:23]} 31. f3 {[%clk 0:00:46.4]} 31... g5 {[%clk 0:01:18.5]} 32.
Rg2 {[%clk 0:00:32.4]} 32... Kf5 {[%clk 0:01:16.6]} 33. Rg4 {[%clk 0:00:32.3]}
33... Rh1 {[%clk 0:01:12.9]} 34. c5 {[%clk 0:00:26.3]} 34... Ra1 {[%clk
0:00:57.8]} 35. Rc4 {[%clk 0:00:22.8]} 35... bxc5 {[%clk 0:00:47.2]} 36. Rxc5
{[%clk 0:00:22.9]} 36... Rxa4 {[%clk 0:00:47.7]} 37. Rxc6 {[%clk 0:00:23.3]}
37... a5 {[%clk 0:00:48]} 38. Rc8 {[%clk 0:00:21.6]} 38... Ra3 {[%clk
0:00:41.9]} 39. Rf8+ {[%clk 0:00:17.1]} 39... Ke6 {[%clk 0:00:41.7]} 40. Rc8
{[%clk 0:00:16.9]} 40... a4 {[%clk 0:00:41.1]} 41. Ke4 {[%clk 0:00:13.8]} 41...
Ra1 {[%clk 0:00:40.2]} 42. Rc6+ {[%clk 0:00:12.9]} 42... Kd7 {[%clk 0:00:40]}
43. Ra6 {[%clk 0:00:11.1]} 43... a3 {[%clk 0:00:34.9]} 44. Kxe5 {[%clk
0:00:09.5]} 44... a2 {[%clk 0:00:35.3]} 45. Kf5 {[%clk 0:00:08.5]} 45... Kc7
{[%clk 0:00:35.8]} 46. c4 {[%clk 0:00:02.5]} 46... Kb7 {[%clk 0:00:34.9]} 47.
Ra3 {[%clk 0:00:02.2]} 47... Kb6 {[%clk 0:00:35]} 48. Ra8 {[%clk 0:00:01.9]}
48... g4 {[%clk 0:00:24.5]} 0-1

[Event "*** Titled Tuesday Blitz"]
[Site "Chess.com"]
[Date "2020.05.19"]
[Round "2"]
[White "PauloFanha"]
[Black "Rakesh"]
[Result "0-1"]
[WhiteElo "1954"]
[BlackElo "2363"]
[TimeControl "180+1"]
[EndTime "12:18:56 PDT"]
[Termination "Rakesh won by resignation"]

1. e4 {[%clk 0:03:00.9]} 1... c5 {[%clk 0:03:00]} 2. Nf3 {[%clk 0:03:00]} 2...
e6 {[%clk 0:02:56.1]} 3. c3 {[%clk 0:02:57.6]} 3... Nf6 {[%clk 0:02:53.4]} 4.
Bd3 {[%clk 0:02:55]} 4... d5 {[%clk 0:02:53.3]} 5. e5 {[%clk 0:02:54.1]} 5...
Nfd7 {[%clk 0:02:48.7]} 6. Bc2 {[%clk 0:02:53.3]} 6... Nc6 {[%clk 0:02:41.3]} 7.
d4 {[%clk 0:02:52.5]} 7... Be7 {[%clk 0:02:42.2]} 8. O-O {[%clk 0:02:50]} 8...
O-O {[%clk 0:02:24.7]} 9. Qd3 {[%clk 0:02:47.1]} 9... g6 {[%clk 0:02:21.9]} 10.
Bh6 {[%clk 0:02:43.7]} 10... Re8 {[%clk 0:02:22.1]} 11. Nbd2 {[%clk 0:02:39.1]}
11... cxd4 {[%clk 0:02:22.1]} 12. cxd4 {[%clk 0:02:36.6]} 12... Nb4 {[%clk
0:02:21.5]} 13. Qc3 {[%clk 0:02:32.4]} 13... b6 {[%clk 0:02:16.4]} 14. Rfc1
{[%clk 0:02:22.9]} 14... Ba6 {[%clk 0:02:13.7]} 15. Ba4 {[%clk 0:02:17.9]} 15...
Rc8 {[%clk 0:02:13.1]} 16. Qe3 {[%clk 0:02:10.9]} 16... Nd3 {[%clk 0:02:09.6]}
17. Rxc8 {[%clk 0:02:07.3]} 17... Qxc8 {[%clk 0:02:10.5]} 18. Bxd7 {[%clk
0:01:54.5]} 18... Qxd7 {[%clk 0:02:11.4]} 19. b3 {[%clk 0:01:52.5]} 19... Rc8
{[%clk 0:02:10.6]} 20. Ng5 {[%clk 0:01:45.6]} 20... Rc2 {[%clk 0:02:05.1]} 21.
h4 {[%clk 0:01:27.3]} 21... Qc8 {[%clk 0:01:36.3]} 22. Qf3 {[%clk 0:01:15.1]}
22... Qe8 {[%clk 0:01:06.9]} 23. Nf1 {[%clk 0:01:08.1]} 23... Rxf2 {[%clk
0:01:04.2]} 24. Qh3 {[%clk 0:01:02.7]} 24... Nf4 {[%clk 0:00:39.4]} 25. Qe3
{[%clk 0:00:59]} 25... Rxg2+ {[%clk 0:00:39.1]} 26. Kh1 {[%clk 0:00:57.6]} 26...
Rg4 {[%clk 0:00:40]} 27. Qf2 {[%clk 0:00:45.3]} 27... Bxg5 {[%clk 0:00:37.3]}
28. hxg5 {[%clk 0:00:40.2]} 28... Qb5 {[%clk 0:00:35.8]} 29. Ne3 {[%clk
0:00:36.4]} 29... Qe2 {[%clk 0:00:24.1]} 30. Qxe2 {[%clk 0:00:33.5]} 30... Bxe2
{[%clk 0:00:24.6]} 31. Nxg4 {[%clk 0:00:33.9]} 31... Bxg4 {[%clk 0:00:24.6]} 32.
Rc1 {[%clk 0:00:33]} 32... Bf3+ {[%clk 0:00:24.7]} 33. Kh2 {[%clk 0:00:30.8]}
33... f5 {[%clk 0:00:25.1]} 34. Kg3 {[%clk 0:00:26.4]} 34... Ne2+ {[%clk
0:00:25.2]} 35. Kxf3 {[%clk 0:00:25.1]} 35... Nxc1 {[%clk 0:00:26.1]} 36. Ke3
{[%clk 0:00:20.1]} 36... Nxa2 {[%clk 0:00:24.1]} 37. Kd2 {[%clk 0:00:18.7]}
37... a5 {[%clk 0:00:24]} 38. Kc2 {[%clk 0:00:16.4]} 38... Kf7 {[%clk
0:00:23.4]} 39. Kb2 {[%clk 0:00:15.6]} 39... Nb4 {[%clk 0:00:23.8]} 40. Kc3
{[%clk 0:00:15.3]} 40... b5 {[%clk 0:00:24.3]} 41. Kd2 {[%clk 0:00:14.5]} 41...
Nc6 {[%clk 0:00:24.7]} 42. Kc3 {[%clk 0:00:14]} 42... a4 {[%clk 0:00:25.6]} 43.
bxa4 {[%clk 0:00:13]} 43... bxa4 {[%clk 0:00:26.5]} 44. Kd3 {[%clk 0:00:13.1]}
44... f4 {[%clk 0:00:26.5]} 45. Ke2 {[%clk 0:00:10.4]} 45... Nxd4+ {[%clk
0:00:26.2]} 0-1

[Event "*** Titled Tuesday Blitz"]
[Site "Chess.com"]
[Date "2020.05.19"]
[Round "2"]
[White "konradrutkowski"]
[Black "crywolf1986"]
[Result "1-0"]
[WhiteElo "2298"]
[BlackElo "2487"]
[TimeControl "180+1"]
[EndTime "12:18:57 PDT"]
[Termination "konradrutkowski won on time"]

1. e4 {[%clk 0:03:00.9]} 1... c6 {[%clk 0:02:57.9]} 2. d4 {[%clk 0:02:59.7]}
2... d5 {[%clk 0:02:58.8]} 3. Nc3 {[%clk 0:02:58.7]} 3... dxe4 {[%clk
0:02:58.6]} 4. Nxe4 {[%clk 0:02:59.6]} 4... Bf5 {[%clk 0:02:58.2]} 5. Ng3 {[%clk
0:02:58.1]} 5... Bg6 {[%clk 0:02:58.2]} 6. h4 {[%clk 0:02:58.7]} 6... h6 {[%clk
0:02:57.9]} 7. Nh3 {[%clk 0:02:58.8]} 7... e5 {[%clk 0:02:55.4]} 8. dxe5 {[%clk
0:02:47.7]} 8... Qa5+ {[%clk 0:02:55]} 9. c3 {[%clk 0:02:43.2]} 9... Qxe5+
{[%clk 0:02:54.4]} 10. Be2 {[%clk 0:02:43.5]} 10... Bc5 {[%clk 0:02:51.5]} 11.
Nf4 {[%clk 0:02:31.2]} 11... Ne7 {[%clk 0:02:44.4]} 12. O-O {[%clk 0:02:16]}
12... O-O {[%clk 0:02:41.9]} 13. Bc4 {[%clk 0:01:56.1]} 13... Qf6 {[%clk
0:02:15.1]} 14. Qg4 {[%clk 0:01:46]} 14... Bf5 {[%clk 0:02:07.1]} 15. Nxf5
{[%clk 0:01:31.6]} 15... Qxf5 {[%clk 0:02:08]} 16. Qg3 {[%clk 0:01:18.4]} 16...
Qe5 {[%clk 0:01:23.9]} 17. Qf3 {[%clk 0:01:05.8]} 17... Nf5 {[%clk 0:00:58.3]}
18. Nd3 {[%clk 0:00:48]} 18... Qf6 {[%clk 0:00:32.6]} 19. Nxc5 {[%clk
0:00:46.1]} 19... b5 {[%clk 0:00:14.3]} 20. Bd3 {[%clk 0:00:42.9]} 20... Nxh4
{[%clk 0:00:12.3]} 21. Qxf6 {[%clk 0:00:39.6]} 21... gxf6 {[%clk 0:00:13.2]} 22.
Bxh6 {[%clk 0:00:38.3]} 22... Re8 {[%clk 0:00:13.4]} 23. Rfe1 {[%clk 0:00:37]}
23... Rd8 {[%clk 0:00:13.5]} 24. Rad1 {[%clk 0:00:24.6]} 24... Rc8 {[%clk
0:00:08.7]} 25. Re4 {[%clk 0:00:14.6]} 25... Ng6 {[%clk 0:00:07.8]} 26. Rde1
{[%clk 0:00:13.6]} 26... Ne5 {[%clk 0:00:06.9]} 27. Bc2 {[%clk 0:00:12.8]} 27...
Nbd7 {[%clk 0:00:06.1]} 28. Nxd7 {[%clk 0:00:12.7]} 28... Nxd7 {[%clk 0:00:06]}
29. Rg4+ {[%clk 0:00:13.1]} 29... Kh8 {[%clk 0:00:04.7]} 30. Bg7+ {[%clk
0:00:11.6]} 30... Kg8 {[%clk 0:00:05.1]} 31. Bxf6+ {[%clk 0:00:11]} 31... Kf8
{[%clk 0:00:05.2]} 32. Be7+ {[%clk 0:00:08.6]} 32... Ke8 {[%clk 0:00:03.4]} 33.
Rg8+ {[%clk 0:00:08.7]} 33... Nf8 {[%clk 0:00:03.7]} 34. Rxf8+ {[%clk
0:00:08.9]} 34... Kd7 {[%clk 0:00:04.1]} 35. Bf5+ {[%clk 0:00:09.2]} 35... Kc7
{[%clk 0:00:04.2]} 36. Rxf7 {[%clk 0:00:09.4]} 36... Kb6 {[%clk 0:00:04]} 37. b4
{[%clk 0:00:09.5]} 37... Rd8 {[%clk 0:00:02.2]} 38. Bc5+ {[%clk 0:00:09.3]}
38... Ka6 {[%clk 0:00:02]} 39. Ree7 {[%clk 0:00:09.4]} 1-0

[Event "*** Titled Tuesday Blitz"]
[Site "Chess.com"]
[Date "2020.05.19"]
[Round "2"]
[White "Blitzstream"]
[Black "wadsy27"]
[Result "1-0"]
[WhiteElo "2717"]
[BlackElo "2482"]
[TimeControl "180+1"]
[EndTime "12:18:59 PDT"]
[Termination "Blitzstream won by resignation"]

1. e3 {[%clk 0:03:00.9]} 1... c5 {[%clk 0:02:56.8]} 2. d4 {[%clk 0:02:59.1]}
2... Nf6 {[%clk 0:02:56.3]} 3. Nf3 {[%clk 0:02:58.3]} 3... d6 {[%clk 0:02:55.9]}
4. dxc5 {[%clk 0:02:57.2]} 4... Qa5+ {[%clk 0:02:55.2]} 5. Nc3 {[%clk
0:02:47.4]} 5... Qxc5 {[%clk 0:02:54.1]} 6. Bd3 {[%clk 0:02:45.3]} 6... g6
{[%clk 0:02:52.8]} 7. O-O {[%clk 0:02:44.8]} 7... Bg7 {[%clk 0:02:52.6]} 8. h3
{[%clk 0:02:41.9]} 8... O-O {[%clk 0:02:52.1]} 9. e4 {[%clk 0:02:39.3]} 9... a6
{[%clk 0:02:48.4]} 10. Be3 {[%clk 0:02:39]} 10... Qc7 {[%clk 0:02:48]} 11. Qd2
{[%clk 0:02:37.4]} 11... Nbd7 {[%clk 0:02:39.5]} 12. Bh6 {[%clk 0:02:37]} 12...
b5 {[%clk 0:02:38.7]} 13. Bxg7 {[%clk 0:02:36.5]} 13... Kxg7 {[%clk 0:02:38.3]}
14. a4 {[%clk 0:02:29.2]} 14... b4 {[%clk 0:02:34.8]} 15. Nd5 {[%clk 0:02:29.1]}
15... Nxd5 {[%clk 0:02:34.7]} 16. exd5 {[%clk 0:02:29.4]} 16... Bb7 {[%clk
0:02:26.7]} 17. Qxb4 {[%clk 0:02:21.7]} 17... Bxd5 {[%clk 0:02:25.9]} 18. Ng5
{[%clk 0:02:19.5]} 18... Qc5 {[%clk 0:02:19.8]} 19. Qh4 {[%clk 0:02:11.9]} 19...
h6 {[%clk 0:02:12.2]} 20. Ne4 {[%clk 0:02:06.2]} 20... Bxe4 {[%clk 0:02:11.7]}
21. Qxe4 {[%clk 0:02:01.9]} 21... Qe5 {[%clk 0:02:01.3]} 22. Rfe1 {[%clk
0:01:57.3]} 22... Qxe4 {[%clk 0:01:58.8]} 23. Rxe4 {[%clk 0:01:58.2]} 23... e5
{[%clk 0:01:53.6]} 24. b4 {[%clk 0:01:29.4]} 24... d5 {[%clk 0:01:53]} 25. Ree1
{[%clk 0:01:28.7]} 25... e4 {[%clk 0:01:44.3]} 26. Bf1 {[%clk 0:01:27.7]} 26...
Rfc8 {[%clk 0:01:18.8]} 27. c4 {[%clk 0:01:27.6]} 27... dxc4 {[%clk 0:01:09.8]}
28. Rxe4 {[%clk 0:01:27.4]} 28... c3 {[%clk 0:01:10.1]} 29. Rc1 {[%clk
0:01:26.7]} 29... a5 {[%clk 0:00:45.8]} 30. bxa5 {[%clk 0:01:19.2]} 30... Rxa5
{[%clk 0:00:44.2]} 31. Bb5 {[%clk 0:01:19.3]} 31... Nb6 {[%clk 0:00:36.4]} 32.
Rd4 {[%clk 0:01:05.2]} 32... Rca8 {[%clk 0:00:25.7]} 33. Bc6 {[%clk 0:00:48.9]}
33... R8a7 {[%clk 0:00:22.5]} 34. Rxc3 {[%clk 0:00:44.4]} 34... Nxa4 {[%clk
0:00:22.4]} 35. Bxa4 {[%clk 0:00:21.6]} 35... Rxa4 {[%clk 0:00:22.2]} 36. Rxa4
{[%clk 0:00:22.5]} 36... Rxa4 {[%clk 0:00:22.2]} 37. g3 {[%clk 0:00:23.1]} 37...
Ra1+ {[%clk 0:00:22]} 38. Kg2 {[%clk 0:00:23.2]} 38... Ra2 {[%clk 0:00:22]} 39.
h4 {[%clk 0:00:23]} 39... h5 {[%clk 0:00:22.2]} 40. Re3 {[%clk 0:00:23]} 40...
Ra5 {[%clk 0:00:22.2]} 41. Kf3 {[%clk 0:00:23.2]} 41... Rf5+ {[%clk 0:00:22.6]}
42. Kg2 {[%clk 0:00:23.4]} 42... Rf6 {[%clk 0:00:23]} 43. Rf3 {[%clk 0:00:23.6]}
43... Rxf3 {[%clk 0:00:22.6]} 44. Kxf3 {[%clk 0:00:24.5]} 44... Kf6 {[%clk
0:00:22.9]} 45. Kf4 {[%clk 0:00:24.8]} 45... Kg7 {[%clk 0:00:22.5]} 46. Ke5
{[%clk 0:00:24.4]} 46... Kg8 {[%clk 0:00:17.5]} 47. Kf6 {[%clk 0:00:23.6]} 47...
Kf8 {[%clk 0:00:17.5]} 48. f3 {[%clk 0:00:20.3]} 48... Kg8 {[%clk 0:00:16.8]}
49. f4 {[%clk 0:00:18.8]} 49... Kf8 {[%clk 0:00:15.8]} 50. f5 {[%clk 0:00:19.1]}
50... gxf5 {[%clk 0:00:15.6]} 51. Kxf5 {[%clk 0:00:19.7]} 51... Kg7 {[%clk
0:00:13.7]} 52. Kg5 {[%clk 0:00:19.9]} 1-0

[Event "*** Titled Tuesday Blitz"]
[Site "Chess.com"]
[Date "2020.05.19"]
[Round "2"]
[White "Witik"]
[Black "MariaFominykh"]
[Result "1-0"]
[WhiteElo "2639"]
[BlackElo "2355"]
[TimeControl "180+1"]
[EndTime "12:18:59 PDT"]
[Termination "Witik won on time"]

1. d4 {[%clk 0:03:00.9]} 1... d6 {[%clk 0:02:58.8]} 2. e4 {[%clk 0:03:00.4]}
2... Nf6 {[%clk 0:02:57.7]} 3. Nc3 {[%clk 0:03:00.2]} 3... e5 {[%clk 0:02:55]}
4. Nge2 {[%clk 0:03:00.1]} 4... Be7 {[%clk 0:02:53.5]} 5. h3 {[%clk 0:03:00.4]}
5... O-O {[%clk 0:02:52.3]} 6. g4 {[%clk 0:03:00.6]} 6... exd4 {[%clk
0:02:47.9]} 7. Nxd4 {[%clk 0:03:00.3]} 7... Re8 {[%clk 0:02:45.2]} 8. Bg2 {[%clk
0:03:00.3]} 8... Nc6 {[%clk 0:02:43.6]} 9. O-O {[%clk 0:02:52]} 9... Nxd4 {[%clk
0:02:40.9]} 10. Qxd4 {[%clk 0:02:51.7]} 10... c6 {[%clk 0:02:40.3]} 11. Bf4
{[%clk 0:02:45.6]} 11... Qb6 {[%clk 0:02:34.7]} 12. Qxb6 {[%clk 0:02:42]} 12...
axb6 {[%clk 0:02:34.2]} 13. Rad1 {[%clk 0:02:39.1]} 13... Rd8 {[%clk 0:02:25.7]}
14. Rd2 {[%clk 0:02:28.1]} 14... Be6 {[%clk 0:02:18.8]} 15. a3 {[%clk
0:02:25.2]} 15... h6 {[%clk 0:02:08.8]} 16. Rfd1 {[%clk 0:02:21]} 16... Ne8
{[%clk 0:02:08.2]} 17. Be3 {[%clk 0:02:05.8]} 17... g5 {[%clk 0:02:03]} 18. Bxb6
{[%clk 0:02:04.8]} 18... Rd7 {[%clk 0:01:56.8]} 19. Ne2 {[%clk 0:01:38.3]} 19...
Bf6 {[%clk 0:01:48.3]} 20. Bd4 {[%clk 0:01:34.9]} 20... Bxd4 {[%clk 0:01:32.9]}
21. Nxd4 {[%clk 0:01:35.1]} 21... h5 {[%clk 0:01:03.2]} 22. gxh5 {[%clk
0:01:25.3]} 22... Rad8 {[%clk 0:00:49.6]} 23. Nf3 {[%clk 0:01:12.6]} 23... f6
{[%clk 0:00:35.1]} 24. Nd4 {[%clk 0:01:12.4]} 24... Bf7 {[%clk 0:00:34.7]} 25.
Bf3 {[%clk 0:01:09.8]} 25... d5 {[%clk 0:00:22.9]} 26. Nf5 {[%clk 0:01:07.6]}
26... Kh7 {[%clk 0:00:20.5]} 27. exd5 {[%clk 0:01:02.5]} 27... Bxd5 {[%clk
0:00:20.1]} 28. Bxd5 {[%clk 0:01:02.5]} 28... cxd5 {[%clk 0:00:19.8]} 29. c4
{[%clk 0:00:55.3]} 29... Nc7 {[%clk 0:00:16.9]} 30. Kg2 {[%clk 0:00:53.4]} 30...
Ne6 {[%clk 0:00:16.7]} 31. cxd5 {[%clk 0:00:50.6]} 31... Nf4+ {[%clk 0:00:16.8]}
32. Kh2 {[%clk 0:00:50.4]} 32... Rxd5 {[%clk 0:00:14.4]} 33. Rxd5 {[%clk
0:00:50.4]} 33... Rxd5 {[%clk 0:00:14.1]} 34. Rxd5 {[%clk 0:00:50.6]} 34... Nxd5
{[%clk 0:00:14.1]} 35. Kg3 {[%clk 0:00:49.7]} 35... Nf4 {[%clk 0:00:09.2]} 36.
Nd6 {[%clk 0:00:47.5]} 36... b6 {[%clk 0:00:07.9]} 37. Nc4 {[%clk 0:00:27]}
37... Nd5 {[%clk 0:00:05.7]} 38. h4 {[%clk 0:00:18.6]} 38... Kh6 {[%clk
0:00:05]} 39. Kg4 {[%clk 0:00:18.4]} 39... b5 {[%clk 0:00:03.1]} 40. Nd6 {[%clk
0:00:16.3]} 40... Nc7 {[%clk 0:00:03.1]} 41. hxg5+ {[%clk 0:00:16.1]} 41... fxg5
{[%clk 0:00:02.9]} 42. Nf7+ {[%clk 0:00:16.7]} 42... Kg7 {[%clk 0:00:02.6]} 43.
Nxg5 {[%clk 0:00:17.6]} 43... Nd5 {[%clk 0:00:02.2]} 44. Ne4 {[%clk 0:00:15]}
44... Nb6 {[%clk 0:00:01.4]} 45. Nd6 {[%clk 0:00:12.2]} 1-0

[Event "*** Titled Tuesday Blitz"]
[Site "Chess.com"]
[Date "2020.05.19"]
[Round "2"]
[White "WonderChampion"]
[Black "GelmanAlexander"]
[Result "0-1"]
[WhiteElo "1934"]
[BlackElo "2584"]
[TimeControl "180+1"]
[EndTime "12:19:01 PDT"]
[Termination "GelmanAlexander won by checkmate"]

1. e4 {[%clk 0:03:00.9]} 1... c5 {[%clk 0:02:59.7]} 2. Nf3 {[%clk 0:02:59.7]}
2... e6 {[%clk 0:02:59.3]} 3. c4 {[%clk 0:02:58.6]} 3... d6 {[%clk 0:02:58.7]}
4. Nc3 {[%clk 0:02:55.2]} 4... a6 {[%clk 0:02:58.6]} 5. d4 {[%clk 0:02:54.5]}
5... cxd4 {[%clk 0:02:58.9]} 6. Nxd4 {[%clk 0:02:54.6]} 6... Nf6 {[%clk
0:02:59.3]} 7. Bd3 {[%clk 0:02:50.2]} 7... b6 {[%clk 0:02:58]} 8. O-O {[%clk
0:02:48.8]} 8... Bb7 {[%clk 0:02:58.3]} 9. Be3 {[%clk 0:02:44.1]} 9... Nbd7
{[%clk 0:02:58.5]} 10. f4 {[%clk 0:02:43.1]} 10... g6 {[%clk 0:02:56.5]} 11. f5
{[%clk 0:02:40.4]} 11... gxf5 {[%clk 0:02:54.7]} 12. exf5 {[%clk 0:02:40]} 12...
e5 {[%clk 0:02:55.2]} 13. Nde2 {[%clk 0:02:31.4]} 13... Rg8 {[%clk 0:02:53.9]}
14. Ng3 {[%clk 0:02:28.9]} 14... h5 {[%clk 0:02:50.4]} 15. Rf2 {[%clk
0:02:22.9]} 15... Ng4 {[%clk 0:02:36.7]} 16. Re2 {[%clk 0:02:18.2]} 16... Qh4
{[%clk 0:02:34.3]} 17. Nf1 {[%clk 0:02:01.1]} 17... Ndf6 {[%clk 0:02:08.5]} 18.
Qe1 {[%clk 0:01:46]} 18... Qxe1 {[%clk 0:01:27.2]} 19. Raxe1 {[%clk 0:01:43.2]}
19... Nxe3 {[%clk 0:01:01.1]} 20. Nxe3 {[%clk 0:01:39.5]} 20... Rc8 {[%clk
0:01:00.9]} 21. Ned5 {[%clk 0:01:36.1]} 21... Nxd5 {[%clk 0:01:00.3]} 22. Nxd5
{[%clk 0:01:36.2]} 22... Bxd5 {[%clk 0:00:57.1]} 23. cxd5 {[%clk 0:01:36.6]}
23... b5 {[%clk 0:00:57.6]} 24. Kf2 {[%clk 0:01:30.8]} 24... Bh6 {[%clk
0:00:57.3]} 25. Rc2 {[%clk 0:01:29.6]} 25... Ke7 {[%clk 0:00:55.9]} 26. Ree2
{[%clk 0:01:24.1]} 26... h4 {[%clk 0:00:54.1]} 27. h3 {[%clk 0:01:23.4]} 27...
Bf4 {[%clk 0:00:52.7]} 28. b3 {[%clk 0:01:16.8]} 28... Bg3+ {[%clk 0:00:48.7]}
29. Kf1 {[%clk 0:01:16.6]} 29... Rc5 {[%clk 0:00:45.3]} 30. Be4 {[%clk
0:01:09.4]} 30... Rgc8 {[%clk 0:00:44.1]} 31. a3 {[%clk 0:01:06.3]} 31... Kf6
{[%clk 0:00:41.9]} 32. a4 {[%clk 0:01:03.8]} 32... b4 {[%clk 0:00:41.1]} 33. Bd3
{[%clk 0:00:59.4]} 33... a5 {[%clk 0:00:39.2]} 34. Rc4 {[%clk 0:00:56.9]} 34...
Rxd5 {[%clk 0:00:32.3]} 35. Rxc8 {[%clk 0:00:50.9]} 35... Rxd3 {[%clk
0:00:32.6]} 36. Rb2 {[%clk 0:00:44.3]} 36... Kxf5 {[%clk 0:00:31.6]} 37. Rf8
{[%clk 0:00:39.3]} 37... f6 {[%clk 0:00:31.6]} 38. Ra8 {[%clk 0:00:36.9]} 38...
d5 {[%clk 0:00:31.8]} 39. Rxa5 {[%clk 0:00:36.2]} 39... d4 {[%clk 0:00:32]} 40.
Rc5 {[%clk 0:00:33.7]} 40... Ke4 {[%clk 0:00:27.4]} 41. Rc1 {[%clk 0:00:30.7]}
41... Kf4 {[%clk 0:00:20.2]} 42. a5 {[%clk 0:00:30.3]} 42... Rc3 {[%clk
0:00:19.4]} 43. Ra1 {[%clk 0:00:27.3]} 43... e4 {[%clk 0:00:18.7]} 44. a6 {[%clk
0:00:27.1]} 44... Rc8 {[%clk 0:00:18.8]} 45. a7 {[%clk 0:00:26.6]} 45... Ra8
{[%clk 0:00:19.1]} 46. Rc2 {[%clk 0:00:24.6]} 46... d3 {[%clk 0:00:19.5]} 47.
Rc4 {[%clk 0:00:23.3]} 47... Ke3 {[%clk 0:00:19.4]} 48. Rc7 {[%clk 0:00:21.5]}
48... Kd2 {[%clk 0:00:19.1]} 49. Rb7 {[%clk 0:00:20.5]} 49... e3 {[%clk
0:00:19]} 50. Ra2+ {[%clk 0:00:17.1]} 50... Kc3 {[%clk 0:00:17.7]} 51. Ra4
{[%clk 0:00:14]} 51... e2+ {[%clk 0:00:17.6]} 52. Kg1 {[%clk 0:00:12.2]} 52...
e1=Q# {[%clk 0:00:18]} 0-1